bitfinex/quotes_BTCUSD_20251219
["timestamp","ask_amount","ask_price","bid_price","bid_amount"]
[1766135173102,0.05116,88142.0,88129.0,1e-07]
[1766135174776,0.05116,88142.0,88119.0,0.01134829]
[1766135174975,0.05126914,88142.0,88119.0,0.01134829]
[1766135175236,0.05126914,88142.0,88118.0,0.01134841]
[1766135175441,0.05126914,88142.0,88121.0,0.17479]
[1766135175442,0.00010914,88142.0,88121.0,0.17479]
[1766135175643,0.00572,88141.0,88131.0,0.01134674]
[1766135176035,0.00572,88141.0,88129.0,0.129817]
[1766135176259,0.00572,88141.0,88129.0,0.35675616]
[1766135176460,0.00572,88141.0,88130.0,0.01134687]
[1766135177209,0.00572,88140.0,88131.0,0.01134674]
[1766135177411,0.00572,88140.0,88130.0,0.01134687]
[1766135177772,0.00572,88140.0,88131.0,0.01134674]
[1766135178412,0.00572,88140.0,88130.0,0.01134687]
[1766135178610,0.00572,88140.0,88130.0,0.23828256]
[1766135179012,0.00572,88140.0,88133.0,0.01134648]
[1766135179219,0.00572,88140.0,88133.0,0.02204704]
[1766135179593,0.00572,88140.0,88133.0,0.01070056]
[1766135179814,0.00572,88140.0,88133.0,0.02204704]
[1766135180014,1.4e-07,88142.0,88134.0,0.11847]
[1766135180312,0.00572014,88142.0,88135.0,0.11847]
[1766135180894,0.00572014,88142.0,88137.0,0.11847]
[1766135181539,1.4e-07,88142.0,88136.0,0.0113461]
[1766135181740,1.4e-07,88142.0,88134.0,0.01134635]
[1766135181954,1.4e-07,88142.0,88135.0,0.01134623]
[1766135182149,1.4e-07,88142.0,88136.0,0.0113461]
[1766135182577,1.4e-07,88142.0,88137.0,0.01134597]
[1766135182785,1.4e-07,88142.0,88139.0,0.01134571]
[1766135182988,1.4e-07,88142.0,88137.0,0.01134597]
[1766135183638,1.4e-07,88142.0,88131.0,0.01134674]
[1766135184047,1.4e-07,88142.0,88130.0,0.01134687]
[1766135184362,1.4e-07,88142.0,88131.0,0.01134674]
[1766135184880,1.4e-07,88142.0,88129.0,0.00572]
[1766135185567,0.001099,88129.0,88123.0,0.06109293]
[1766135185882,0.001099,88129.0,88122.0,0.06109293]
[1766135186086,0.001099,88129.0,88120.0,0.06109293]
[1766135186286,0.02361465,88139.0,88120.0,0.06109293]
[1766135186920,0.99615489,88130.0,88117.0,0.06109293]
[1766135187119,0.001099,88120.0,88115.0,0.06109293]
[1766135187474,0.01933465,88129.0,88114.0,0.06109293]
[1766135188260,0.01,88128.0,88111.0,0.06112952]
[1766135188481,0.01933465,88129.0,88107.0,0.01134983]
[1766135188482,0.01,88126.0,88107.0,0.01134983]
[1766135188679,0.01,88124.0,88105.0,0.01135009]
[1766135188946,0.99615489,88120.0,88103.0,3.6e-07]
[1766135189140,0.01933465,88119.0,88103.0,3.6e-07]
[1766135189344,0.01361465,88118.0,88103.0,3.6e-07]
[1766135190877,0.99615489,88113.0,88103.0,3.6e-07]
[1766135191032,0.05905465,88112.0,88103.0,3.6e-07]
[1766135191248,0.05905465,88112.0,88081.0,0.13554318]
[1766135191249,0.01706932,88111.0,88081.0,0.00572]
[1766135191426,1.32991365,88110.0,88079.0,0.08161643]
[1766135191641,1.32991365,88110.0,88078.0,0.08161643]
[1766135191642,0.04082327,88105.0,88078.0,0.08161643]
[1766135191833,0.04082327,88105.0,88074.0,0.08181643]
[1766135191834,0.01361465,88104.0,88074.0,0.08181643]
[1766135192040,0.00572,88103.0,88074.0,0.08218035]
[1766135192241,0.01361465,88102.0,88074.0,0.011918]
[1766135192718,0.01361465,88102.0,88095.0,0.00024777]
[1766135192953,0.01361465,88102.0,88077.0,0.0113537]
[1766135193360,0.01361465,88102.0,88076.0,0.01135383]
[1766135193361,1.32991365,88100.0,88076.0,0.01135383]
[1766135193541,0.01361465,88099.0,88076.0,0.01135383]
[1766135193981,0.01361465,88099.0,88075.0,0.01135395]
[1766135194182,0.01361465,88099.0,88076.0,0.01135383]
[1766135196035,0.01361465,88099.0,88075.0,0.01135395]
[1766135196268,0.01361465,88099.0,88074.0,0.011918]
[1766135196680,0.01,88098.0,88074.0,0.011918]
[1766135196864,0.01,88096.0,88074.0,0.011918]
[1766135197063,0.01,88094.0,88074.0,0.00056392]
[1766135197274,0.01361465,88093.0,88074.0,0.011918]
[1766135197479,0.01361465,88093.0,88087.0,0.00024781]
[1766135200064,0.01,88094.0,88087.0,0.00024781]
[1766135200676,0.01,88094.0,88087.0,8.1e-07]
[1766135208249,0.01361465,88093.0,88087.0,8.1e-07]
[1766135211251,0.01,88099.0,88093.0,0.000494]
[1766135211493,0.01,88096.0,88087.0,8.1e-07]
[1766135212102,0.009506,88096.0,88087.0,8.1e-07]
[1766135212458,0.00572,88098.0,88087.0,8.1e-07]
[1766135212861,0.00572,88097.0,88087.0,8.1e-07]
[1766135213088,0.99728696,88110.0,88090.0,0.01135202]
[1766135213434,0.04548,88105.0,88088.0,0.23839697]
[1766135213602,0.04548,88105.0,88088.0,0.01135228]
[1766135213807,0.00572,88104.0,88090.0,0.01135202]
[1766135214069,0.99712476,88110.0,88094.0,0.01135151]
[1766135214207,0.04548,88109.0,88097.0,0.01135112]
[1766135214405,0.01,88117.0,88098.0,0.01135099]
[1766135214608,0.01,88115.0,88097.0,0.01135112]
[1766135214948,0.01,88115.0,88096.0,0.01135125]
[1766135216132,0.00355419,88114.0,88094.0,0.01135151]
[1766135216335,0.01,88109.0,88089.0,0.01135215]
[1766135216743,0.01,88109.0,88091.0,0.01135189]
[1766135216922,0.01,88109.0,88090.0,0.01135202]
[1766135216923,0.99712476,88101.0,88087.0,8.1e-07]
[1766135217129,0.01,88099.0,88087.0,8.1e-07]
[1766135217329,1.00712476,88097.0,88087.0,8.1e-07]
[1766135217681,0.01,88095.0,88087.0,8.1e-07]
[1766135217884,0.01,88093.0,88087.0,8.1e-07]
[1766135221843,0.04082327,88096.0,88087.0,8.1e-07]
[1766135222046,0.01572,88095.0,88087.0,8.1e-07]
[1766135228003,0.01,88100.0,88087.0,8.1e-07]
[1766135228202,0.01,88098.0,88087.0,8.1e-07]
[1766135231006,0.01,88100.0,88084.0,0.18098168]
[1766135231164,0.01780947,88101.0,88084.0,0.18098168]
[1766135231165,0.01,88096.0,88085.0,0.01135267]
[1766135231501,0.01,88096.0,88086.0,0.01135254]
[1766135231648,0.01,88096.0,88087.0,0.01135241]
[1766135231844,0.01,88096.0,88083.0,0.01135292]
[1766135231845,0.01780947,88101.0,88090.0,0.23839041]
[1766135232222,0.01,88112.0,88102.0,0.01135048]
[1766135232347,0.01,88110.0,88106.0,0.01134996]
[1766135232551,0.01,88110.0,88102.0,0.01135048]
[1766135232552,0.01,88110.0,88104.0,0.01135022]
[1766135233471,0.01,88110.0,88105.0,0.01135009]
[1766135233681,0.01,88110.0,88104.0,0.01171414]
[1766135233913,0.00572,88112.0,88106.0,0.01134996]
[1766135234123,0.00572,88112.0,88105.0,0.01135009]
[1766135234556,0.01,88123.0,88104.0,0.01171414]
[1766135234557,0.00572,88115.0,88106.0,0.01134996]
[1766135234797,0.00572,88115.0,88105.0,0.01135009]
[1766135235274,0.00572,88115.0,88104.0,0.01171414]
[1766135235686,0.00572,88115.0,88105.0,0.01135009]
[1766135235933,0.00572,88115.0,88104.0,0.00036392]
[1766135236108,0.001099,88105.0,88104.0,0.00036392]
[1766135236321,0.00572,88115.0,88104.0,0.00036392]
[1766135236665,0.93393885,88114.0,88104.0,0.00036392]
[1766135236866,0.01,88114.0,88104.0,0.00036392]
[1766135237692,0.01,88119.0,88104.0,0.00036392]
[1766135237903,0.01,88117.0,88104.0,0.00036392]
[1766135238092,0.00355406,88116.0,88104.0,0.00036392]
[1766135241577,0.01,88114.0,88104.0,0.00036392]
[1766135241962,0.01,88112.0,88104.0,0.00036392]
[1766135242623,0.0025,88111.0,88104.0,0.00036392]
[1766135242822,0.01611465,88111.0,88104.0,0.00036392]
[1766135249083,0.0025,88111.0,88104.0,0.00036392]
[1766135252043,0.0025,88111.0,88108.0,0.0113497]
[1766135252165,0.01,88124.0,88116.0,0.01134867]
[1766135252363,0.01,88122.0,88116.0,0.01134867]
[1766135252933,0.0025,88121.0,88115.0,0.0113488]
[1766135253070,0.0025,88121.0,88111.0,0.01134932]
[1766135253270,0.0025,88121.0,88113.0,0.01134906]
[1766135253638,0.0025,88121.0,88116.0,0.01134867]
[1766135253994,0.0025,88121.0,88115.0,0.0113488]
[1766135254313,0.0025,88121.0,88113.0,0.01134906]
[1766135254533,0.0025,88121.0,88115.0,0.0113488]
[1766135255441,0.00572,88125.0,88120.0,0.22696323]
[1766135255646,0.0125,88124.0,88122.0,0.0113479]
[1766135256449,0.0125,88124.0,88123.0,0.01183656]
[1766135256653,0.0025,88124.0,88123.0,0.01183656]
[1766135257543,0.0025,88124.0,88122.0,0.0113479]
[1766135257749,0.0025,88124.0,88123.0,0.2269555]
[1766135258006,0.00572,88130.0,88127.0,0.01134726]
[1766135258161,0.0025,88129.0,88127.0,0.01134726]
[1766135258374,0.00572,88130.0,88124.0,0.01134764]
[1766135258569,0.00572,88130.0,88125.0,0.01134751]
[1766135258779,0.00572,88130.0,88124.0,0.01134764]
[1766135258980,0.00572,88130.0,88122.0,0.0113479]
[1766135259158,0.0025,88129.0,88123.0,0.01134777]
[1766135259361,0.0025,88129.0,88121.0,0.01134803]
[1766135259569,0.0025,88129.0,88122.0,0.0113479]
[1766135259804,0.0025,88129.0,88123.0,0.01134777]
[1766135260184,0.0025,88129.0,88124.0,0.01134764]
[1766135260565,0.0025,88129.0,88125.0,0.01134751]
[1766135260774,0.0025,88129.0,88124.0,0.01134764]
[1766135260948,0.0025,88129.0,88126.0,0.01134738]
[1766135261103,0.0025,88139.0,88125.0,0.22695035]
[1766135261312,0.0125,88137.0,88127.0,0.01134726]
[1766135261535,0.0125,88137.0,88121.0,0.20312]
[1766135261536,0.0025,88126.0,88116.0,0.01134867]
[1766135261708,0.0025,88126.0,88115.0,0.0113488]
[1766135262700,0.0025,88130.0,88116.0,0.01134867]
[1766135263148,0.0025,88130.0,88115.0,0.0113488]
[1766135263378,0.0025,88117.0,88107.0,0.01134983]
[1766135263579,0.0025,88117.0,88109.0,0.00572]
[1766135263807,0.0025,88117.0,88109.0,0.01706957]
[1766135264224,0.0025,88117.0,88112.0,0.01134919]
[1766135264414,0.0025,88120.0,88113.0,0.01134906]
[1766135264680,0.0025,88120.0,88111.0,0.01134932]
[1766135264897,0.0025,88120.0,88112.0,0.01134919]
[1766135265640,0.0025,88120.0,88109.0,0.00572]
[1766135266131,0.0025,88120.0,88111.0,0.01134932]
[1766135266544,0.0025,88120.0,88113.0,0.01134906]
[1766135266973,0.01,88134.0,88117.0,0.01134854]
[1766135267191,0.01,88134.0,88125.0,0.01134751]
[1766135267192,0.01822,88133.0,88125.0,0.01134751]
[1766135267371,0.01822,88133.0,88124.0,0.01134764]
[1766135267673,0.01822,88133.0,88121.0,0.01134803]
[1766135267993,0.00572,88133.0,88124.0,0.01134764]
[1766135268206,0.0025,88132.0,88125.0,0.01134751]
[1766135268380,0.0025,88132.0,88126.0,0.01134738]
[1766135268758,0.0025,88132.0,88124.0,0.01134764]
[1766135269342,0.00572,88134.0,88127.0,0.01134726]
[1766135269523,0.0025,88133.0,88127.0,0.01134726]
[1766135269723,0.0025,88133.0,88128.0,0.01134713]
[1766135269931,0.0025,88133.0,88127.0,0.01134726]
[1766135270453,0.0025,88133.0,88125.0,0.01134751]
[1766135270702,0.0025,88133.0,88126.0,0.01134738]
[1766135270906,0.0025,88133.0,88127.0,0.01134726]
[1766135271111,0.0025,88133.0,88121.0,0.36197844]
[1766135271289,0.0025,88133.0,88121.0,0.23830844]
[1766135271496,0.0025,88133.0,88123.0,0.01134777]
[1766135271703,0.0025,88133.0,88124.0,0.01134764]
[1766135271938,0.0025,88133.0,88123.0,0.01134777]
[1766135272387,0.0025,88133.0,88124.0,0.01134764]
[1766135272593,0.0025,88133.0,88123.0,0.01134777]
[1766135272799,0.0025,88133.0,88124.0,0.01134764]
[1766135272980,0.0025,88133.0,88123.0,0.01134777]
[1766135273152,0.0025,88132.0,88123.0,0.01134777]
[1766135273330,0.0025,88132.0,88117.0,0.22696861]
[1766135273540,0.0025,88132.0,88118.0,0.00572]
[1766135273970,0.0025,88132.0,88118.0,0.01706841]
[1766135274172,0.0025,88132.0,88123.0,0.01134777]
[1766135274838,0.0025,88132.0,88121.0,0.01134803]
[1766135275638,0.0025,88132.0,88120.0,0.23830966]
[1766135275842,0.0025,88132.0,88121.0,0.01134803]
[1766135277176,0.0025,88132.0,88122.0,0.0113479]
[1766135277558,0.0025,88132.0,88121.0,0.01134803]
[1766135278034,0.0025,88132.0,88120.0,0.23830966]
[1766135278035,0.0025,88132.0,88120.0,0.01134816]
[1766135278190,0.0025,88132.0,88118.0,0.01706841]
[1766135278393,0.0025,88132.0,88119.0,0.01134829]
[1766135279204,0.001099,88119.0,88105.0,0.01135009]
[1766135279479,0.0025,88118.0,88104.0,0.00036392]
[1766135279837,0.0025,88118.0,88109.0,0.01134957]
[1766135280040,0.0025,88118.0,88115.0,0.0113488]
[1766135280241,0.0025,88118.0,88115.0,0.23832272]
[1766135280445,0.0025,88124.0,88119.0,0.01134829]
[1766135280667,0.0025,88124.0,88118.0,0.01134841]
[1766135280841,0.0025,88124.0,88120.0,0.01134816]
[1766135281041,0.0025,88124.0,88121.0,0.01134803]
[1766135281267,0.0025,88124.0,88115.0,0.0113488]
[1766135281472,0.0025,88124.0,88112.0,0.01134919]
[1766135281637,0.0025,88124.0,88114.0,0.01134893]
[1766135282855,0.0025,88124.0,88113.0,0.01134906]
[1766135283056,0.0025,88124.0,88114.0,0.01134893]
[1766135283626,0.0025,88124.0,88113.0,0.01134906]
[1766135284215,0.0025,88124.0,88115.0,0.0113488]
[1766135284537,0.0125,88125.0,88119.0,0.01134829]
[1766135284816,0.00572,88126.0,88123.0,0.01134777]
[1766135285022,0.0025,88125.0,88123.0,0.01134777]
[1766135285222,0.0025,88125.0,88122.0,0.0113479]
[1766135285606,0.0025,88125.0,88121.0,0.2383066]
[1766135285816,0.0025,88125.0,88122.0,0.0113479]
[1766135285980,0.0025,88137.0,88126.0,0.01134738]
[1766135286178,0.0025,88135.0,88124.0,0.01134764]
[1766135286433,0.0025,88133.0,88124.0,0.01134764]
[1766135286644,0.0025,88133.0,88122.0,0.0113479]
[1766135286645,0.0025,88131.0,88122.0,0.0113479]
[1766135286841,0.0025,88129.0,88124.0,0.01134764]
[1766135287045,0.0025,88129.0,88123.0,0.01134777]
[1766135287272,0.00822,88129.0,88123.0,0.01134777]
[1766135288355,0.00822,88129.0,88120.0,0.01134816]
[1766135288560,0.0025,88119.0,88110.0,0.01134944]
[1766135288736,0.0025,88119.0,88111.0,0.01706932]
[1766135289131,0.0025,88119.0,88111.0,0.00572]
[1766135289532,0.0025,88119.0,88111.0,0.01706932]
[1766135289883,0.0025,88128.0,88112.0,0.01134919]
[1766135290031,0.0025,88126.0,88112.0,0.01134919]
[1766135290494,0.001099,88112.0,88108.0,0.0138497]
[1766135290698,0.001099,88112.0,88106.0,0.00572]
[1766135291062,0.0025,88119.0,88106.0,0.00572]
[1766135291806,0.0025,88119.0,88108.0,0.0113497]
[1766135292573,0.0025,88119.0,88109.0,0.01134957]
[1766135292775,0.0025,88119.0,88107.0,0.01134983]
[1766135293947,0.0025,88119.0,88108.0,0.0113497]
[1766135294166,0.0025,88119.0,88109.0,0.01134957]
[1766135294780,0.0025,88119.0,88110.0,0.01134944]
[1766135295206,0.0025,88119.0,88111.0,0.01134932]
[1766135295402,0.0025,88119.0,88113.0,0.01134906]
[1766135295732,0.0125,88135.0,88114.0,0.01183776]
[1766135295981,0.0025,88131.0,88120.0,0.01134816]
[1766135296185,0.0025,88129.0,88121.0,0.01134803]
[1766135296595,0.00572,88132.0,88121.0,0.01134803]
[1766135296803,0.0025,88130.0,88121.0,0.01134803]
[1766135297011,0.0025,88130.0,88122.0,0.0113479]
[1766135298024,0.0025,88131.0,88121.0,0.01134803]
[1766135298255,0.0025,88131.0,88122.0,0.0113479]
[1766135298460,0.0025,88131.0,88121.0,0.01134803]
[1766135298843,0.0025,88131.0,88122.0,0.0113479]
[1766135298999,0.0025,88131.0,88120.0,0.01134816]
[1766135299181,0.0025,88131.0,88119.0,0.01134829]
[1766135299380,0.0025,88131.0,88120.0,0.01134816]
[1766135299581,0.0025,88131.0,88119.0,0.01134829]
[1766135299829,0.0025,88131.0,88119.0,0.23831398]
[1766135300410,0.0025,88131.0,88124.0,0.01134764]
[1766135300759,0.0025,88135.0,88129.0,0.011347]
[1766135300956,0.0025,88135.0,88128.0,0.01134713]
[1766135301155,0.0025,88133.0,88128.0,0.01134713]
[1766135302229,0.0025,88136.0,88129.0,0.011347]
[1766135302485,0.0025,88134.0,88128.0,0.01134713]
[1766135302668,0.0025,88134.0,88129.0,0.011347]
[1766135303425,0.0025,88136.0,88127.0,0.01134726]
[1766135303628,0.0025,88134.0,88128.0,0.01134713]
[1766135303828,0.0025,88134.0,88127.0,0.23829008]
[1766135304143,0.0025,88134.0,88128.0,0.01134713]
[1766135304348,0.0025,88134.0,88129.0,0.011347]
[1766135304545,0.0025,88136.0,88125.0,0.01134751]
[1766135304766,0.01,88137.0,88125.0,0.01134751]
[1766135304767,0.0025,88128.0,88125.0,0.01134751]
[1766135305570,0.0025,88128.0,88126.0,0.23829515]
[1766135305746,0.0025,88136.0,88127.0,0.01134726]
[1766135305942,0.0025,88136.0,88128.0,0.01134713]
[1766135306147,0.0025,88136.0,88127.0,0.01134726]
[1766135306356,0.0025,88136.0,88125.0,0.23829574]
[1766135306357,0.0025,88136.0,88128.0,0.01134713]
[1766135307201,0.0025,88134.0,88127.0,0.01134726]
[1766135307357,0.0025,88134.0,88126.0,0.01134738]
[1766135307942,0.0025,88132.0,88127.0,0.2382924]
[1766135308210,0.0025,88132.0,88128.0,0.01134713]
[1766135308359,0.0025,88132.0,88122.0,0.0170679]
[1766135308558,0.0025,88132.0,88122.0,0.00572]
[1766135309209,0.0025,88132.0,88117.0,0.22697035]
[1766135309210,0.0025,88132.0,88115.0,0.0113488]
[1766135309374,0.0025,88132.0,88114.0,0.01706893]
[1766135309575,0.0025,88132.0,88116.0,0.05217194]
[1766135309848,0.0025,88132.0,88119.0,0.01134829]
[1766135310013,0.0025,88132.0,88117.0,0.01134854]
[1766135310632,0.0025,88132.0,88114.0,0.00572]
[1766135310633,0.0025,88129.0,88114.0,0.00572]
[1766135310876,0.0025,88129.0,88109.0,0.0025]
[1766135311048,0.001099,88114.0,88104.0,0.01171414]
[1766135311202,0.00822,88113.0,88104.0,0.00036392]
[1766135311804,0.0025,88111.0,88104.0,0.00036392]
[1766135312565,0.0025,88111.0,88104.0,9.2e-07]
[1766135312566,0.01611465,88111.0,88104.0,9.2e-07]
[1766135314513,0.01611465,88111.0,88092.0,0.00822]
[1766135314715,0.01647857,88111.0,88096.0,0.01135125]
[1766135315156,0.01647857,88111.0,88098.0,0.01135099]
[1766135315359,0.01647857,88111.0,88097.0,0.01135112]
[1766135315895,0.01647857,88111.0,88098.0,0.01135099]
[1766135316299,0.00286392,88111.0,88104.0,0.01135022]
[1766135316545,0.00286392,88111.0,88103.0,0.22700585]
[1766135316546,0.00250092,88111.0,88103.0,0.01135035]
[1766135316748,0.00250092,88111.0,88104.0,0.01135022]
[1766135316948,0.00250092,88111.0,88103.0,0.01135035]
[1766135317382,0.00250092,88111.0,88102.0,0.01135048]
[1766135317562,0.00250092,88111.0,88101.0,0.0113506]
[1766135319181,0.00250092,88111.0,88100.0,0.01135073]
[1766135319339,0.00250092,88111.0,88101.0,0.0113506]
[1766135319977,0.0025,88109.0,88098.0,0.01135099]
[1766135320145,0.0025,88109.0,88097.0,0.01135112]
[1766135320326,0.0025,88109.0,88098.0,0.01135099]
[1766135320743,0.0025,88109.0,88099.0,0.01135086]
[1766135321194,0.00036392,88111.0,88099.0,0.01135086]
[1766135321409,0.0025,88108.0,88098.0,0.01135099]
[1766135321823,0.0025,88108.0,88097.0,0.01135112]
[1766135322015,0.0025,88108.0,88093.0,0.01135163]
[1766135322214,0.0025,88108.0,88096.0,0.01135125]
[1766135322890,0.0025,88108.0,88098.0,0.01135099]
[1766135323086,0.0025,88108.0,88099.0,0.01135086]
[1766135323314,0.0025,88108.0,88098.0,0.01135099]
[1766135323746,0.0025,88108.0,88099.0,0.01135086]
[1766135324166,0.0025,88108.0,88098.0,0.01135099]
[1766135324340,0.00572,88107.0,88097.0,0.01135112]
[1766135326454,0.00572,88107.0,88096.0,0.01135125]
[1766135327023,0.00572,88107.0,88097.0,0.01135112]
[1766135327222,0.00572,88107.0,88098.0,0.01135099]
[1766135328631,0.00572,88107.0,88099.0,0.01135086]
[1766135328943,0.00572,88107.0,88098.0,0.01135099]
[1766135330003,0.00572,88107.0,88099.0,0.01135086]
[1766135330578,0.00572,88107.0,88100.0,0.01135073]
[1766135330781,0.00572,88107.0,88099.0,0.01135086]
[1766135330987,0.00572,88107.0,88098.0,0.01135099]
[1766135331773,0.00572,88107.0,88099.0,0.01135086]
[1766135331990,0.00572,88107.0,88097.0,0.01135112]
[1766135332272,0.00572,88107.0,88089.0,0.01135215]
[1766135332612,0.00572,88107.0,88087.0,0.00572]
[1766135332613,0.0025,88105.0,88090.0,0.0025]
[1766135332817,3.92e-06,88111.0,88108.0,0.0025]
[1766135333057,3.92e-06,88111.0,88110.0,0.54835899]
[1766135334190,3.92e-06,88111.0,88110.0,0.55085899]
[1766135335847,3.92e-06,88111.0,88110.0,0.22948899]
[1766135336343,3.92e-06,88111.0,88110.0,0.23520899]
[1766135337111,3.92e-06,88111.0,88110.0,0.55657899]
[1766135341912,3.92e-06,88111.0,88106.0,0.06110113]
[1766135342091,3.92e-06,88111.0,88108.0,0.0113497]
[1766135342687,3.92e-06,88111.0,88110.0,0.14523537]
[1766135342891,3.92e-06,88111.0,88110.0,0.46660537]
[1766135343936,3.92e-06,88111.0,88110.0,0.14523537]
[1766135345428,3.92e-06,88111.0,88110.0,0.26064537]
[1766135345589,3.92e-06,88111.0,88110.0,0.14773537]
[1766135350546,3.92e-06,88111.0,88110.0,1.14773537]
[1766135356769,3.92e-06,88111.0,88110.0,1.15345537]
[1766135357138,3.92e-06,88111.0,88110.0,1.47071537]
[1766135358049,3.92e-06,88111.0,88110.0,1.15345537]
[1766135361193,3.92e-06,88111.0,88110.0,1.0025]
[1766135363127,3.92e-06,88111.0,88110.0,1.31976]
[1766135363684,0.02454569,88139.0,88110.0,1.31976]
[1766135363685,0.2461,88149.0,88133.0,0.01134648]
[1766135363851,0.0125,88143.0,88131.0,0.01134674]
[1766135364056,0.0125,88141.0,88131.0,0.2382812]
[1766135364209,0.0025,88139.0,88131.0,0.2382812]
[1766135364625,0.0025,88139.0,88130.0,0.99622971]
[1766135364861,0.0025,88137.0,88127.0,0.00572]
[1766135365694,0.0025,88137.0,88127.0,0.01706726]
[1766135365917,0.0025,88137.0,88128.0,0.01134713]
[1766135366082,0.0025,88137.0,88127.0,0.01706726]
[1766135366261,0.0025,88137.0,88128.0,0.01134713]
[1766135366478,0.0025,88137.0,88127.0,0.01706726]
[1766135366874,0.0025,88137.0,88127.0,0.00572]
[1766135367733,0.0025,88137.0,88122.0,0.22695746]
[1766135367734,0.00355309,88136.0,88114.0,0.06115571]
[1766135367874,0.00355309,88136.0,88115.0,0.00572]
[1766135367875,0.0025,88129.0,88115.0,0.00572]
[1766135368233,0.0025,88127.0,88110.0,0.81417541]
[1766135368398,0.0025,88119.0,88099.0,0.01133564]
[1766135368598,0.01611465,88119.0,88099.0,0.01135086]
[1766135369005,0.01611465,88119.0,88100.0,0.01135073]
[1766135369207,0.01611465,88119.0,88100.0,1.00758044]
[1766135369605,0.01611465,88119.0,88101.0,0.0113506]
[1766135369785,0.01611465,88119.0,88099.0,0.01135086]
[1766135369993,0.01611465,88119.0,88100.0,0.99622971]
[1766135370188,0.01611465,88119.0,88099.0,0.01135086]
[1766135370429,0.01611465,88119.0,88098.0,0.01707099]
[1766135370625,0.01611465,88119.0,88098.0,0.00572]
[1766135371032,0.01611465,88119.0,88092.0,0.00572]
[1766135371033,0.06693792,88119.0,88092.0,0.00572]
[1766135371229,0.0025,88109.0,88092.0,0.00572]
[1766135371452,0.0025,88107.0,88087.0,0.06251241]
[1766135371671,0.0125,88105.0,88088.0,0.01135228]
[1766135371843,0.0125,88103.0,88088.0,0.01135228]
[1766135372047,0.0025,88101.0,88087.0,0.00572]
[1766135372432,0.0025,88101.0,88087.0,0.01707241]
[1766135372634,0.0025,88101.0,88087.0,0.00572]
[1766135372982,0.0025,88102.0,88087.0,0.00572]
[1766135373575,0.0125,88102.0,88087.0,0.00572]
[1766135375002,0.0125,88102.0,88089.0,0.01135215]
[1766135375003,0.0025,88102.0,88089.0,0.01135215]
[1766135375150,0.0025,88102.0,88090.0,0.01135202]
[1766135375767,0.0025,88102.0,88087.0,0.00572]
[1766135375973,0.0025,88102.0,88088.0,0.01135228]
[1766135376171,0.01611465,88102.0,88088.0,0.01135228]
[1766135376445,0.01611465,88102.0,88089.0,0.01135215]
[1766135376648,0.01611465,88102.0,88092.0,0.01135176]
[1766135376649,0.0025,88102.0,88092.0,0.01135176]
[1766135376769,0.0025,88102.0,88091.0,0.01135189]
[1766135377287,0.0025,88102.0,88093.0,0.01135163]
[1766135377601,0.0025,88102.0,88092.0,0.01135176]
[1766135379418,0.0025,88102.0,88094.0,0.01135151]
[1766135379616,0.0025,88102.0,88093.0,0.01135163]
[1766135379849,0.0025,88102.0,88094.0,0.01135151]
[1766135380450,0.0025,88102.0,88093.0,0.01135163]
[1766135381013,0.0025,88102.0,88094.0,0.01135151]
[1766135381445,0.001401,88102.0,88096.0,0.21492]
[1766135381736,0.00572,88113.0,88101.0,0.0113506]
[1766135381913,0.00572,88113.0,88103.0,0.01135035]
[1766135382133,0.08472033,88127.0,88106.0,0.01134996]
[1766135382342,0.0113506,88124.0,88106.0,0.01134996]
[1766135383027,0.0113506,88124.0,88109.0,0.01134957]
[1766135383218,0.0113506,88124.0,88109.0,0.01134945]
[1766135383648,0.0125,88123.0,88109.0,0.01134945]
[1766135383984,0.0125,88123.0,88110.0,0.01134944]
[1766135384146,0.01,88123.0,88110.0,0.01134944]
[1766135384603,0.0025,88122.0,88109.0,0.01134957]
[1766135384781,0.0025,88122.0,88110.0,0.01134944]
[1766135385124,0.0025,88122.0,88109.0,0.01134957]
[1766135385394,0.0025,88122.0,88111.0,0.01134932]
[1766135385550,0.0025,88120.0,88111.0,0.23833461]
[1766135385760,0.0025,88120.0,88111.0,0.01134932]
[1766135386161,0.0025,88120.0,88112.0,0.00113492]
[1766135386710,0.01134983,88129.0,88116.0,0.00562867]
[1766135386912,0.00572,88129.0,88117.0,0.00113486]
[1766135387055,0.0025,88128.0,88115.0,0.0113488]
[1766135387599,0.0025,88128.0,88114.0,0.01134893]
[1766135387776,0.0025,88128.0,88116.0,0.01134867]
[1766135388103,0.01,88135.0,88122.0,0.0113479]
[1766135388266,0.00572,88132.0,88124.0,0.01134764]
[1766135388469,0.0025,88131.0,88125.0,0.01134751]
[1766135388687,0.0025,88131.0,88124.0,0.01134764]
[1766135388903,0.0025,88131.0,88123.0,0.01134777]
[1766135389107,0.0025,88131.0,88120.0,0.01134816]
[1766135389306,0.0025,88131.0,88122.0,0.0113479]
[1766135389483,0.0025,88131.0,88122.0,0.01171182]
[1766135389683,0.0025,88131.0,88122.0,0.00036392]
[1766135391894,0.0025,88131.0,88122.0,0.01171182]
[1766135392274,0.0025,88131.0,88122.0,0.00036392]
[1766135392680,0.0025,88131.0,88122.0,0.01171182]
[1766135392874,0.0025,88131.0,88123.0,0.01134777]
[1766135393266,0.0025,88132.0,88127.0,0.01134727]
[1766135394282,0.0025,88132.0,88127.0,1e-08]
[1766135395494,0.0025,88132.0,88127.0,0.01134727]
[1766135396106,0.0025,88132.0,88127.0,1e-08]
[1766135397479,0.0025,88132.0,88125.0,0.00934752]
[1766135397679,0.0025,88132.0,88126.0,0.01134738]
[1766135397999,0.0025,88132.0,88110.0,0.99626355]
[1766135398000,0.0025,88132.0,88102.0,0.1258]
[1766135398260,0.0025,88125.0,88109.0,0.01384957]
[1766135398471,0.0025,88125.0,88110.0,0.00572]
[1766135398472,0.02524127,88125.0,88110.0,0.00572]
[1766135398665,0.02524127,88125.0,88103.0,0.23835737]
[1766135398666,0.02524127,88125.0,88103.0,0.01135035]
[1766135398864,0.0025,88123.0,88105.0,0.01135009]
[1766135399067,0.0025,88123.0,88104.0,0.01135022]
[1766135399068,0.0025,88121.0,88104.0,0.01135022]
[1766135399272,0.01952204,88121.0,88104.0,0.01135022]
[1766135399430,0.01952204,88121.0,88105.0,0.01135009]
[1766135399860,0.01952204,88121.0,88103.0,0.00572]
[1766135400054,0.01952204,88121.0,88091.0,0.31329877]
[1766135400055,0.0025,88119.0,88098.0,0.01135099]
[1766135400268,0.01952243,88119.0,88100.0,0.01135073]